Cogmind - Beta 13 @@@ ROGUE MODE // 2024.04.16 @ 11:47:14 Player: PeeBee Result: Destroyed by Y-45 Defender with Heavy Assault Rifle Performance ------------- Evolutions (1) 500 Regions Visited (3) 600 Robots Destroyed (14) 70 Value Destroyed (531) 531 Prototype IDs (1) 20 Alien Tech Used (0) 0 Bonus (0) 0 TOTAL SCORE: 1721 Bonus ------- None Cogmind --------- Core Integrity 0/400 Matter 154/300 Energy 100/100 System Corruption 8% Temperature Cool (9) Movement Core (450) Ox8 Location -9/Storage Parts ------- > --- POWER (1) -------- (None) > --- PROPULSION (3) --- (None) > --- UTILITY (3) ------ Small Storage Unit Large Storage Unit > --- WEAPON (2) ------- (None) > --- INVENTORY (15) --- Huge Storage Unit Peak State ------------ > --- POWER ------------ Improved Ion Engine > --- PROPULSION ------- Aluminum Leg Improved Aluminum Leg > --- UTILITY ---------- Heat Sink Small Storage Unit Large Storage Unit > --- WEAPON ----------- Beam Rifle Improved Assault Rifle > --- INVENTORY -------- Huge Storage Unit [Rating: 13] Favorites ----------- Power Ion Engine Engine Ion Engine Power Core Light Nuclear Core Propulsion Aluminum Leg Treads Light Treads Leg Aluminum Leg Utility Small Storage Unit Device Heat Sink Storage Small Storage Unit Protection Weapon Shielding Weapon Assault Rifle Energy Gun Beam Rifle Ballistic Gun Assault Rifle Launcher Grenade Launcher Build | -11 -10 -9 -9 ------- Run | Yrd Mat Mat Sto Slots Evolved 2 | . . 2 . Power . | . . . . Propulsion 1 | . . 1 . Utility 1 | . . 1 . Weapon . | . . . . Parts Attached 32 | 6 13 3 10 Power 6 | 1 3 . 2 Engine 5 | 1 2 . 2 Core 1 | . 1 . . Reactor . | . . . . Propulsion 9 | 2 4 2 1 Treads 3 | 2 1 . . Leg 6 | . 3 2 1 Wheel . | . . . . Hover . | . . . . Flight . | . . . . Utility 7 | 1 1 1 4 Device 1 | . . . 1 Storage 5 | 1 1 . 3 Processor . | . . . . Hackware . | . . . . Protection 1 | . . 1 . Artifact . | . . . . Weapon 10 | 2 5 . 3 Energy Gun 1 | . . . 1 Energy Cannon . | . . . . Ballistic Gun 8 | 2 4 . 2 Ballistic Cannon . | . . . . Launcher 1 | . 1 . . Special Weapon . | . . . . Impact Weapon . | . . . . Slashing Weapon . | . . . . Piercing Weapon . | . . . . Special Melee Weapon . | . . . . Unidentified Prototypes 1 | . . . 1 Parts Lost 17 | . 3 . 14 Power 4 | . 1 . 3 Propulsion 4 | . . . 4 Utility 2 | . . . 2 Weapon 7 | . 2 . 5 Highest Loss Streak 6 | . 2 . 6 To Critical Strikes . | . . . . Average Slot Usage (%) 86 | . 86 92 84 Engine 6 | . 4 11 10 Core 4 | . 8 . . Treads 6 | . 11 . . Leg 15 | . 7 31 25 Device 1 | . . . 4 Storage 25 | . 27 22 22 Protection 2 | . . 5 4 Energy Gun 1 | . . . 4 Ballistic Gun 18 | . 24 11 9 Launcher 3 | . 2 11 4 Naked Turns . | . . . . Heaviest Build 39 | 14 35 36 39 Greatest Support 40 | 40 40 33 33 Greatest Overweight (x) 12 | . 8 1 12 Average Overweight (x) . | . . 1 1 Largest Inventory Capacity 25 | 8 15 15 25 Average Capacity 14 | 6 14 15 15 Most Carried 5 | . 4 5 5 Average Carried 2 | . 2 4 2 Final Capacity 15 | 8 15 15 15 Final Carried 5 | . 4 5 1 Class Distribution -------------------- 90% | Mutant 9% | Scavenger-Mutant Dominant Class ---------------- Mutant | -10/Materials Mutant | -9/Materials Mutant | -9/Storage Resources | -11 -10 -9 -9 ----------- Run | Yrd Mat Mat Sto Matter Collected 656 | 245 278 . 133 Remotely . | . . . . Salvage Created 483 | . 364 . 119 Parts 35 | . 26 . 9 Haulers Intercepted . | . . . . Recyclers Shooed . | . . . . Parts Field Recycled . | . . . . Retrieved Matter . | . . . . Parts Self-Destructed . | . . . . Prevented . | . . . . Kills | -11 -10 -9 -9 ------- Run | Yrd Mat Mat Sto Combat Hostiles Destroyed 13 | . 10 . 3 Melee 1 | . . . 1 Guns 8 | . 7 . 1 AOE 4 | . 3 . 1 Classes Destroyed 3 | . 2 . 1 Tunneler 1 | . 1 . . Grunt 10 | . 10 . . Sentry 3 | . . . 3 Best Kill Streak 4 | . 4 . 1 Combat Bots Only 3 | . 3 . 1 Max Kills in Single Turn 2 | . 2 . 1 Gunslinging . | . . . . Exploded 2 | . 2 . 1 Melee 1 | . . . 1 Uniques/NPCs Destroyed . | . . . . Combat | -11 -10 -9 -9 -------- Run | Yrd Mat Mat Sto Hostile Shots Fired 162 | . 70 . 92 Missed 33 | . 14 . 19 Damage Taken 2142 | . 665 . 1477 Core 535 | . 134 . 401 Absorbed by Shields . | . . . . Redirected to Shielding 52 | . . . 52 Core Remaining (%) 73 | 100 46 . . Volleys Fired 64 | . 37 . 27 Largest 2 | . 2 . 2 Hottest 79 | . 50 . 79 Shots Fired 112 | . 70 . 42 Gun 104 | . 67 . 37 Cannon . | . . . . Launcher 8 | . 3 . 5 Special . | . . . . Kinetic 96 | . 67 . 29 Thermal 8 | . . . 8 Explosive 8 | . 3 . 5 Electromagnetic . | . . . . Robot Hit Streak 29 | . 7 . 29 Robot Miss Streak 3 | . 3 . 1 Penetration Max . | . . . . Secondary Targets . | . . . . Shots Hit Robots 75 | . 43 . 32 Core Hits 34 | . 23 . 11 Critical Kills . | . . . . Critical Parts Destroyed 1 | . . . 1 Critical Strikes 1 | . . . 1 Destroy 1 | . . . 1 Melee Attacks . | . . . . Impact . | . . . . Slashing . | . . . . Piercing . | . . . . Sneak Attacks . | . . . . Combat Hostiles . | . . . . Follow-up Attacks . | . . . . Damage Inflicted 1234 | . 746 . 488 Guns 954 | . 533 . 421 Cannons . | . . . . Explosions 263 | . 213 . 50 Melee . | . . . . Ramming 17 | . . . 17 Kinetic 853 | . 533 . 320 Thermal 101 | . . . 101 Explosive 263 | . 213 . 50 Electromagnetic . | . . . . Impact . | . . . . Slashing . | . . . . Piercing . | . . . . Highest Corruption 8 | . . . 8 Average Corruption 8 | . . . 8 Corruption Purged . | . . . . Corruption Blocked . | . . . . Effects 10 | . . . 10 Message Errors 2 | . . . 2 Matter Fused 2 | . . . 2 Energy Discharges 3 | . . . 3 Data Loss (minor) 1 | . . . 1 Misfires 2 | . . . 2 Overload Shots . | . . . . Overflow Damage . | . . . . Projectiles . | . . . . Explosions . | . . . . Melee . | . . . . Knockbacks . | . . . . Impact . | . . . . Kinetic . | . . . . Secondary . | . . . . Self-Inflicted Damage 41 | . . . 41 Shots 2 | . . . 2 Rammed . | . . . . Targets Rammed 7 | . . . 7 Kicked 7 | . . . 7 Crushed . | . . . . Highest Temperature 24 | . 24 . 12 Average Temperature 4 | . 5 . 3 Received Heat Transfer 672 | . 366 . 306 Siege Activations . | . . . . Robots Corrupted . | . . . . Combat Hostiles . | . . . . Parts Fried . | . . . . Impact Corruptions . | . . . . Robots Melted . | . . . . Combat Hostiles . | . . . . Parts Melted . | . . . . Heat Transferred 259 | . . . 259 Parts Sabotaged . | . . . . Parts Stolen . | . . . . Parts Stripped . | . . . . Power Chain Reactions . | . . . . Alert | -11 -10 -9 -9 ------- Run | Yrd Mat Mat Sto Peak Influence 130 | . 130 54 83 Initial 54 | . . 54 22 Average 38 | . 45 54 27 Maximum Alert Level . | . . . . Low Security (%) 100 | 100 100 100 100 Level 1 . | . . . . Level 2 . | . . . . Level 3 . | . . . . Level 4 . | . . . . Level 5 . | . . . . High Security . | . . . . Max Security . | . . . . Squads Dispatched 3 | . 3 . . Investigation . | . . . . Extermination . | . . . . Reinforcement 3 | . 3 . . Assault . | . . . . Garrison . | . . . . Intercept . | . . . . Searches Triggered . | . . . . Construction Impeded . | . . . . Haulers Reinforced . | . . . . Active Scanning Responses . | . . . . Cargo Convoy Interrupts . | . . . . Stealth | -11 -10 -9 -9 --------- Run | Yrd Mat Mat Sto Distress Signals 1 | . . . 1 Communications Jammed . | . . . . Distress Signals . | . . . . Times Spotted 20 | . 15 . 5 Peak Tracking Total 3 | . 3 . 3 Tactical Retreats . | . . . . Traps | -11 -10 -9 -9 ------- Run | Yrd Mat Mat Sto Traps Triggered 4 | . 3 . 1 Indirectly . | . . . . Trap Hack Attempts . | . . . . Triggered . | . . . . Disarmed . | . . . . Reprogrammed . | . . . . Reused . | . . . . Traps Extracted . | . . . . Installed . | . . . . Triggered . | . . . . Machines | -11 -10 -9 -9 ---------- Run | Yrd Mat Mat Sto Machines Disabled 1 | . 1 . . Max in Single Turn 1 | . 1 . . Machines Repaired . | . . . . Machines Dismantled . | . . . . Machines Sabotaged . | . . . . Overloaded Fab Kills . | . . . . Hacking | -11 -10 -9 -9 --------- Run | Yrd Mat Mat Sto Machines Accessed . | . . . . Terminals . | . . . . Fabricators . | . . . . Repair Stations . | . . . . Recycling Units . | . . . . Scanalyzers . | . . . . Garrison Access . | . . . . Total Hacks . | . . . . Successful . | . . . . Failed . | . . . . Catastrophic . | . . . . Database Lockouts . | . . . . Manual . | . . . . Terminals . | . . . . Fabricators . | . . . . Repair Stations . | . . . . Recycling Units . | . . . . Scanalyzers . | . . . . Garrison Access . | . . . . Terminal Hacks . | . . . . Fabricator Hacks . | . . . . Repair Station Hacks . | . . . . Recycling Unit Hacks . | . . . . Scanalyzer . | . . . . Garrison Access Hacks . | . . . . Unauthorized Hacks . | . . . . Terminals . | . . . . Fabricators . | . . . . Repair Stations . | . . . . Recycling Units . | . . . . Scanalyzers . | . . . . Garrison Access . | . . . . Data Cores Recovered . | . . . . Used . | . . . . Hacking Detections . | . . . . Full Trace Events . | . . . . Feedback Events . | . . . . Feedback Blocked . | . . . . Robot Schematics Acquired . | . . . . Robots Built . | . . . . Authchips . | . . . . Time . | . . . . Total Robot Build Rating . | . . . . Part Schematics Acquired . | . . . . Parts Built . | . . . . Authchips . | . . . . Time . | . . . . Total Part Build Rating . | . . . . Parts Repaired . | . . . . Time . | . . . . Parts Recycled . | . . . . Recycled Matter . | . . . . Retrieved Matter . | . . . . Retrieved Components . | . . . . Parts Scanalyzed . | . . . . Part Schematics Acquired . | . . . . Parts Damaged . | . . . . Bothacking | -11 -10 -9 -9 ------------ Run | Yrd Mat Mat Sto Used RIF Installer . | . . . . Robots Hacked . | . . . . Non-combat . | . . . . Combat . | . . . . Robot Hacks Applied . | . . . . Relay Couplers Released . | . . . . Fabnet Peak Effective % . | . . . . Robots Rewired . | . . . . Allies Hacked . | . . . . Hacks Repelled . | . . . . Allies | -11 -10 -9 -9 -------- Run | Yrd Mat Mat Sto Total Allies . | . . . . Largest Group . | . . . . Highest-Rated Group . | . . . . Highest-Rated Ally . | . . . . Total Orders . | . . . . Ally Attacks . | . . . . Total Damage . | . . . . Kills . | . . . . Allies Corrupted . | . . . . Allies Melted . | . . . . Intel | -11 -10 -9 -9 ------- Run | Yrd Mat Mat Sto Robot Analysis Total . | . . . . Derelict Logs Recovered . | . . . . Drone Launches . | . . . . Drone Recoveries . | . . . . Exploration | -11 -10 -9 -9 ------------- Run | Yrd Mat Mat Sto Turns Passed 1766 | 81 986 147 552 Spaces Moved 755 | 51 393 76 235 Core 19 | 8 4 . 7 Treads 321 | 43 278 . . Legs 415 | . 111 76 228 Wheels . | . . . . Hover . | . . . . Flight . | . . . . Fastest Speed 50 | 50 160 190 120 Average Speed 202 | 142 218 190 192 Slowest Speed 650 | 160 450 190 650 Overloaded Moves . | . . . . Propulsion Burnouts . | . . . . Robots Hopped . | . . . . Cave-ins Triggered 1 | . . . 1 Exploration Rate (%) 21 | 4 43 9 28 Regions Visited 3 Branch Regions 1 Pre-discovered Areas . | . . . . Known Exits Taken . | . . . . Unknown Exits Taken 3 | 1 1 1 . Scrap Searched . | . . . . Spaces Dug 4 | . . . 4 Terrain Destroyed 48 | . 9 . 39 Melee . | . . . . Projectile . | . . . . AOE 48 | . 9 . 39 Terrain Rammed . | . . . . Walls Destroyed . | . . . . Machines Disabled . | . . . . Actions | -11 -10 -9 -9 --------- Run | Yrd Mat Mat Sto Total 872 | 56 446 78 292 Wait 2 | . . . 2 Move 752 | 50 392 75 235 Hop . | . . . . Pick Up 5 | . 4 . 1 Fast Attach 21 | 6 8 2 5 Attach 5 | . 2 . 3 Detach 1 | . . . 1 Swap 6 | . 3 1 2 Drop 4 | . . . 4 Fire 64 | . 37 . 27 Melee . | . . . . Ram . | . . . . Kick 7 | . . . 7 Crush . | . . . . Escape Stasis 5 | . . . 5 Rewire . | . . . . Trap . | . . . . Miscellaneous . | . . . . Route ------- -11/Scrapyard -10/Materials (discovered 2 exits: [*Mat] / [*Min]) -9/Materials (discovered 2 exits: [*Sto x2]) -9/Storage History --------- Turn | Location | Event 6 | -11/Scrapyard | Discovered new exit (range 13) 82 | -11/Scrapyard | Entered Materials 311 | -10/Materials | Build established: Mutant 929 | -10/Materials | Core integrity fell below 50% 947 | -10/Materials | Discovered new exit (range 15) 954 | -10/Materials | Discovered new exit (range 15) 1068 | -10/Materials | Entered another Materials area 1068 | -9/Materials | Evolved 2 slots: Propulsion x1, Utility x1 1196 | -9/Materials | Discovered new exit (range 8) 1214 | -9/Materials | Discovered new exit (range 9) 1215 | -9/Materials | Entered Storage 1452 | -9/Storage | Crushed by falling debris 1483 | -9/Storage | Lost 5 parts (1p1n1u2w) 1529 | -9/Storage | Core integrity fell below 50% 1562 | -9/Storage | Lost 3 parts (1p1n1w) 1753 | -9/Storage | Core integrity fell below 20% 1767 | -9/Storage | Destroyed by Y-45 Defender with Heavy Assault Rifle Last Messages --------------- System corrupted: Energy discharge (-95). W-16 Scout sends out distress signal. System corrupted: Energy discharge (-106). Imp. Aluminum Leg destroyed. Y-45 Defender destroyed. K-01 Serf collects debris. Aluminum Leg destroyed. K-01 Serf collects debris. K-01 Serf destroyed. System corrupted: Matter fused (-10). R-06 Scavenger collects Beam Rifle. Imp. Assault Rifle destroyed. R-06 Scavenger collects Heat Sink. R-06 Scavenger collects Imp. Ion Engine. Imp. Ion Engine destroyed. Acquired 14 matter. Beam Rifle destroyed. Heat Sink destroyed. Acquired 58 matter. YZXX=YB%N9SW==ORDL#6V|#EG7HSNEH>>PV Map ----- +----------------------------------------------------+ | ?# """ # #?????????????### # # | | ## """ # #?????????????### # # | | #T # #?#####???????### ### | | ?# # #?# #?????### # # # | | ?# # #?# #?????# # # # | | ?####+## #?# #?????## ## ### | | ????# ###+############# #?? | | ????# #?? | | ????# #?? | | ????# #?? | | ????#####+######################?? | | ????# #????????#########?? | | ????#"""" #??????????????????? | | ????#"""" #??????????????????? | | ????#"""" #??????????????????? | | ????#"""" #??????????????????? | | ????# #??????????????????? | | ????# #??????????????????? | | ????# #??????????????????? | | ????#######+###??????????????????? | | ?####?????# #????????????????????? | | ?? ????# #????????????????????? | | ?? ???# #????????????????????? | | ?? """" ### ##???????????????????? | | ?? """" # ##+######+#?????????? | | ?? """" Y@ ??????? | | ?? """" # ??????? | | ? ?# ### ########????????? | | # ??## ##???#???????????????? | | ?####????# #????????????????????? | | ?????????# #????????????????????? | | ?????????# #????????????????????? | | ?????????# #????????????????????? | | ?????????# #????????????????????? | | ?????????# #????????????????????? | | ?????????+ +????????????????????? | | ?????????# #????????????????????? | | ?????????# #????????????????????? | | ?????????# T????????????????????? | | ?????????? #????????????????????? | | ??????????""?????????????????????? | | ?????????????????????????????????? | | ?????????????????????????????????? | | ?????????????????????????????????? | | ?????????????????????????????????? | | ?????????????????????????????????? | | ?????????????????????????????????? | | ?????????????????????????????????? | | ?????????????????????????????????? | | ?????????????????????????????????? | +----------------------------------------------------+ Best States ------------- Heat Dissipation 38 Energy Generation 14 Energy Capacity 265 Matter Stores 285 Matter Capacity 300 Sight Range 16 Terrain Scan Density 10 Weapon Shielding 33 Evasion (%) 55 Recoil Reduction 2 Item Schematics ----------------- None Robot Schematics ------------------ None Fabricated ------------ Nothing Alien Tech Used ----------------- None Achievements -------------- Crack Shot Risk Taker Challenges ------------ None Game ------ Seed GyrokineticAlertWand Manual? 0 Play Time 00:17:54 Cumulative 1.0 hours Start 2024.04.16 @ 11:29:33 End 2024.04.16 @ 11:47:14 Sessions 1 Manual Loads 0 Difficulty Rogue Special Mode None Game No. 5 Rogue 5 Adventurer 0 Explorer 0 Win Type - Total 0 Types 0/0/0/0/0/0/0/0/0 Lore% 0 Gallery% 4 Achievement% 5 Wizard Run 0 Options --------- Layout 1 ASCII 0 Keyboard 1 Movement Arrows Keybinds 0 Fullscreen 1 Font 32/SmallcapsGlow Map View 50x35 Zoom Use 0% Tactical HUD 0 Map Filters NONE Filters NONE Steam 1 RUN: e06d93c0-48dc-480f-b04c-4b6f8de9ba14